bitfinex/quotes_BTCUSD_20250607
["timestamp","ask_amount","ask_price","bid_price","bid_amount"]
[1749318353327,0.61307362,105610.0,105600.0,0.38394963]
[1749318353525,0.6130737,105610.0,105600.0,0.38394963]
[1749318353749,0.61307371,105610.0,105600.0,0.38394963]
[1749318353965,0.5953248,105610.0,105600.0,0.38394963]
[1749318354118,0.61307371,105610.0,105600.0,0.38394963]
[1749318354496,0.5953248,105610.0,105600.0,0.38394963]
[1749318354674,0.58866896,105610.0,105600.0,0.38394963]
[1749318354854,0.60641781,105610.0,105600.0,0.38394963]
[1749318355263,0.60641745,105610.0,105600.0,0.38394963]
[1749318355462,0.58866896,105610.0,105600.0,0.38394963]
[1749318355986,0.61307323,105610.0,105600.0,0.38394963]
[1749318356216,0.60641752,105610.0,105600.0,0.38394963]
[1749318356429,0.61307324,105610.0,105600.0,0.38394963]
[1749318356636,0.60641752,105610.0,105600.0,0.38394963]
[1749318356841,0.59532468,105610.0,105600.0,0.38394963]
[1749318357043,0.61307327,105610.0,105600.0,0.38394963]
[1749318357251,0.58866896,105610.0,105600.0,0.38394963]
[1749318357453,0.61307327,105610.0,105600.0,0.38394963]
[1749318358442,0.58866896,105610.0,105600.0,0.38394963]
[1749318358642,0.59532467,105610.0,105600.0,0.38394963]
[1749318358865,0.61307324,105610.0,105600.0,0.38394963]
[1749318359069,0.58866896,105610.0,105600.0,0.38394963]
[1749318359336,0.59532467,105610.0,105600.0,0.38394963]
[1749318359543,0.61307324,105610.0,105600.0,0.38394963]
[1749318359743,0.6064175,105610.0,105600.0,0.38394963]
[1749318359878,0.61307318,105610.0,105600.0,0.38394963]
[1749318360098,0.60641749,105610.0,105600.0,0.38394963]
[1749318360295,0.60641733,105610.0,105600.0,0.38394963]
[1749318360638,0.58866896,105610.0,105600.0,0.38394963]
[1749318360853,0.6064174,105610.0,105600.0,0.38394963]
[1749318361048,0.58866896,105610.0,105600.0,0.38394963]
[1749318361297,0.60641745,105610.0,105600.0,0.38394963]
[1749318361517,0.60641746,105610.0,105600.0,0.38394963]
[1749318361728,0.61307339,105610.0,105600.0,0.38394963]
[1749318361945,0.61307335,105610.0,105600.0,0.38394963]
[1749318362162,0.60641746,105610.0,105600.0,0.38394963]
[1749318362367,0.61307396,105610.0,105600.0,0.38394963]
[1749318362586,0.60641811,105610.0,105600.0,0.38394963]
[1749318362787,0.58866896,105610.0,105600.0,0.38394963]
[1749318362989,0.61307405,105610.0,105600.0,0.38394963]
[1749318363416,0.61307405,105610.0,105600.0,0.01034963]
[1749318363621,0.61307405,105610.0,105600.0,0.29690963]
[1749318363835,0.63580037,105610.0,105600.0,0.01034963]
[1749318364028,0.63580204,105610.0,105600.0,0.29690963]
[1749318364238,0.61139342,105610.0,105600.0,0.29690963]
[1749318364441,0.63479244,105610.0,105600.0,0.29190963]
[1749318364651,0.63579244,105610.0,105600.0,0.29590963]
[1749318365279,0.63479244,105610.0,105600.0,0.29190963]
[1749318365482,0.63679231,105610.0,105600.0,0.29790963]
[1749318365695,0.63479197,105610.0,105600.0,0.28890963]
[1749318365898,0.63479257,105610.0,105600.0,0.28890963]
[1749318366101,0.63579423,105610.0,105600.0,0.29090963]
[1749318366310,0.63579432,105610.0,105600.0,0.29090963]
[1749318366742,0.62913953,105610.0,105600.0,0.29090963]
[1749318366942,0.63579422,105610.0,105600.0,0.29090963]
[1749318367351,0.61804819,105610.0,105600.0,0.29090963]
[1749318367558,0.63579425,105610.0,105600.0,0.29090963]
[1749318367787,0.63579417,105610.0,105600.0,0.29090963]
[1749318368000,0.63579411,105610.0,105600.0,0.29090963]
[1749318369065,0.63579424,105610.0,105600.0,0.29090963]
[1749318369274,0.63579425,105610.0,105600.0,0.29090963]
[1749318369429,0.61804819,105610.0,105600.0,0.29090963]
[1749318369641,0.63579424,105610.0,105600.0,0.29090963]
[1749318369851,0.63579423,105610.0,105600.0,0.29090963]
[1749318370214,0.63579404,105610.0,105600.0,0.29090963]
[1749318370624,0.61804818,105610.0,105600.0,0.29090963]
[1749318370799,0.63579778,105610.0,105600.0,0.29090963]
[1749318371011,0.63579912,105610.0,105600.0,0.29090963]
[1749318371208,0.61804952,105610.0,105600.0,0.29090963]
[1749318371462,0.63579912,105610.0,105600.0,0.29090963]
[1749318372292,0.61804957,105610.0,105600.0,0.29090963]
[1749318372506,0.63579936,105610.0,105600.0,0.29090963]
[1749318372717,0.63579919,105610.0,105600.0,0.29090963]
[1749318373759,0.63579787,105610.0,105600.0,0.29090963]
[1749318373962,0.61804822,105610.0,105600.0,0.29090963]
[1749318374169,0.63579431,105610.0,105600.0,0.29090963]
[1749318374317,0.62913953,105610.0,105600.0,0.29090963]
[1749318374523,0.63579429,105610.0,105600.0,0.29090963]
[1749318375382,0.6180482,105610.0,105600.0,0.29090963]
[1749318375770,0.63579122,105610.0,105600.0,0.29090963]
[1749318375978,0.63579125,105610.0,105600.0,0.29090963]
[1749318376169,0.63579127,105610.0,105600.0,0.29090963]
[1749318377046,0.62913731,105610.0,105600.0,0.29090963]
[1749318377266,0.63579133,105610.0,105600.0,0.29090963]
[1749318377475,0.61804745,105610.0,105600.0,0.29090963]
[1749318377719,0.63579128,105610.0,105600.0,0.29090963]
[1749318378354,0.63579003,105610.0,105600.0,0.29090963]
[1749318378784,0.62913625,105610.0,105600.0,0.29090963]
[1749318378967,0.63578959,105610.0,105600.0,0.29090963]
[1749318379197,0.63578971,105610.0,105600.0,0.29090963]
[1749318379401,0.7077929,105610.0,105600.0,0.29090963]
[1749318379654,0.73218896,105610.0,105600.0,0.00434963]
[1749318380306,4.83924979,105610.0,105600.0,0.00434963]
[1749318380528,4.85699378,105610.0,105600.0,0.00434963]
[1749318380749,4.87876949,105610.0,105600.0,0.00434963]
[1749318381198,4.91288948,105610.0,105600.0,0.00234963]
[1749318381427,4.91188948,105610.0,105600.0,0.00034963]
[1749318381669,4.91188189,105610.0,105600.0,0.00234963]
[1749318381885,4.91187903,105610.0,105600.0,0.00234963]
[1749318382101,4.89414262,105610.0,105600.0,0.00234963]
[1749318382328,4.9118792,105610.0,105600.0,0.00234963]
[1749318382548,4.89414269,105610.0,105600.0,0.00234963]
[1749318382753,4.91187939,105610.0,105600.0,0.00234963]
[1749318382963,4.94010144,105610.0,105600.0,0.00234963]
[1749318383574,4.91571354,105610.0,105600.0,0.00234963]
[1749318383779,4.94010384,105610.0,105600.0,0.00234963]
[1749318383996,4.94010378,105610.0,105600.0,0.00234963]
[1749318384169,4.93345194,105610.0,105600.0,0.00234963]
[1749318384431,4.94010378,105610.0,105600.0,0.00234963]
[1749318385282,4.94010209,105610.0,105600.0,0.00234963]
[1749318385502,4.93345194,105610.0,105600.0,0.00234963]
[1749318385703,4.94010209,105610.0,105600.0,0.00234963]
[1749318385909,4.94009742,105610.0,105600.0,0.00234963]
[1749318386119,4.92236368,105610.0,105600.0,0.00234963]
[1749318386328,4.94009741,105610.0,105600.0,0.00234963]
[1749318386930,4.94009449,105610.0,105600.0,0.00234963]
[1749318387222,4.92236289,105610.0,105600.0,0.00234963]
[1749318387399,4.94009456,105610.0,105600.0,0.00234963]
[1749318387605,4.94009471,105610.0,105600.0,0.00234963]
[1749318387785,4.9400948,105610.0,105600.0,0.00234963]
[1749318388194,4.94009624,105610.0,105600.0,0.00234963]
[1749318388420,4.94009627,105610.0,105600.0,0.00234963]
[1749318388587,4.94009633,105610.0,105600.0,0.00234963]
[1749318388788,4.94010062,105610.0,105600.0,0.00234963]
[1749318389034,4.94010061,105610.0,105600.0,0.00234963]
[1749318389241,4.94010054,105610.0,105600.0,0.00234963]
[1749318389775,4.91571354,105610.0,105600.0,0.00234963]
[1749318389905,4.94009656,105610.0,105600.0,0.00234963]
[1749318390479,4.94009643,105610.0,105600.0,0.00234963]
[1749318390679,4.94009644,105610.0,105600.0,0.00234963]
[1749318391279,4.94009635,105610.0,105600.0,0.00234963]
[1749318391491,0.81529335,105610.0,105600.0,0.00234963]
[1749318391729,4.94010331,105610.0,105600.0,0.00234963]
[1749318392138,4.91571354,105610.0,105600.0,0.00234963]
[1749318392406,4.94010587,105610.0,105600.0,0.00234963]
[1749318392620,4.94010583,105610.0,105600.0,0.00234963]
[1749318393034,4.94010586,105610.0,105600.0,0.00234963]
[1749318394288,4.94010601,105610.0,105600.0,0.00234963]
[1749318394693,4.94010612,105610.0,105600.0,0.00234963]
[1749318394817,4.94010682,105610.0,105600.0,0.00234963]
[1749318395015,4.92236625,105610.0,105600.0,0.00234963]
[1749318395364,4.94010677,105610.0,105600.0,0.00234963]
[1749318395598,4.93345407,105610.0,105600.0,0.00234963]
[1749318395803,4.91571354,105610.0,105600.0,0.00234963]
[1749318396005,4.92236625,105610.0,105600.0,0.00234963]
[1749318396205,4.93345411,105610.0,105600.0,0.00234963]
[1749318396624,4.93345413,105610.0,105600.0,0.00234963]
[1749318396870,4.94010684,105610.0,105600.0,0.00234963]
[1749318397401,4.93345412,105610.0,105600.0,0.00234963]
[1749318398600,4.91571354,105610.0,105600.0,0.00234963]
[1749318399421,4.94011083,105610.0,105600.0,0.00234963]
[1749318399831,4.91571354,105610.0,105600.0,0.00234963]
[1749318400034,4.94011084,105610.0,105600.0,0.00234963]
[1749318400236,4.94011085,105610.0,105600.0,0.00234963]
[1749318400433,4.94011083,105610.0,105600.0,0.00234963]
[1749318400884,4.92236734,105610.0,105600.0,0.00234963]
[1749318401092,4.93345702,105610.0,105600.0,0.00234963]
[1749318401295,4.94011082,105610.0,105600.0,0.00234963]
[1749318401498,4.94011111,105610.0,105600.0,0.00234963]
[1749318401732,4.94011189,105610.0,105600.0,0.00234963]
[1749318402332,4.97798104,105610.0,105600.0,0.00234963]
[1749318402568,4.97798106,105610.0,105600.0,0.00234963]
[1749318402768,4.97132696,105610.0,105600.0,0.00234963]
[1749318403006,4.97798107,105610.0,105600.0,0.00234963]
[1749318403442,4.97798243,105610.0,105600.0,0.00234963]
[1749318403887,4.97798607,105610.0,105600.0,0.00234963]
[1749318404106,0.85318307,105610.0,105600.0,0.00234963]
[1749318404307,4.97798607,105610.0,105600.0,0.00234963]
[1749318405196,4.97799219,105610.0,105600.0,0.00234963]
[1749318405414,4.97799448,105610.0,105600.0,0.00234963]
[1749318405639,4.97133672,105610.0,105600.0,0.00234963]
[1749318405852,4.97799447,105610.0,105600.0,0.00234963]
[1749318406272,4.97133741,105610.0,105600.0,0.00234963]
[1749318406488,4.97799545,105610.0,105600.0,0.00234963]
[1749318406697,4.97799554,105610.0,105600.0,0.00234963]
[1749318406936,4.96024073,105610.0,105600.0,0.00234963]
[1749318407140,4.96024075,105610.0,105600.0,0.00234963]
[1749318407357,4.97799561,105610.0,105600.0,0.00234963]
[1749318407565,4.95358268,105610.0,105600.0,0.00234963]
[1749318407784,4.97799525,105610.0,105600.0,0.00234963]
[1749318408438,4.95358268,105610.0,105600.0,0.00234963]
[1749318408857,4.97134986,105610.0,105600.0,0.00234963]
[1749318409075,4.97801255,105610.0,105600.0,0.00234963]
[1749318409536,4.97723443,105610.0,105600.0,0.00234963]
[1749318409736,4.97723492,105610.0,105600.0,0.00234963]
[1749318409910,4.9705721,105610.0,105600.0,0.00234963]
[1749318410109,4.96113491,105610.0,105600.0,0.00234963]
[1749318410655,4.95447209,105610.0,105600.0,0.00234963]
[1749318410786,4.96113491,105610.0,105600.0,0.00234963]
[1749318411374,4.96113552,105610.0,105600.0,0.00234963]
[1749318411788,4.96113715,105610.0,105600.0,0.00234963]
[1749318413327,0.83633415,105610.0,105600.0,0.00234963]
[1749318413539,4.96113715,105610.0,105600.0,0.00234963]
[1749318413957,4.94336799,105610.0,105600.0,0.00234963]
[1749318414213,4.96113715,105610.0,105600.0,0.00234963]
[1749318414659,4.96113748,105610.0,105600.0,0.00234963]
[1749318415159,4.94336832,105610.0,105600.0,0.00234963]
[1749318415394,4.96113836,105610.0,105600.0,0.00234963]
[1749318415596,0.83633536,105610.0,105600.0,0.00234963]
[1749318415846,4.93670456,105610.0,105600.0,0.00234963]
[1749318416062,4.96113836,105610.0,105600.0,0.00234963]
[1749318416939,4.96114035,105610.0,105600.0,0.00234963]
[1749318417352,4.96114034,105610.0,105600.0,0.00234963]
[1749318417604,0.83633734,105610.0,105600.0,0.00234963]
[1749318417826,4.96114034,105610.0,105600.0,0.00234963]
[1749318418912,4.93670456,105610.0,105600.0,0.00234963]
[1749318419575,4.96114124,105610.0,105600.0,0.00234963]
[1749318420184,4.96114153,105610.0,105600.0,0.00234963]
[1749318420933,4.9544769,105610.0,105600.0,0.00234963]
[1749318421144,4.96114153,105610.0,105600.0,0.00234963]
[1749318421777,4.96114142,105610.0,105600.0,0.00234963]
[1749318421998,4.94631954,105610.0,105600.0,0.00234963]
[1749318422206,4.92854726,105610.0,105600.0,0.00234963]
[1749318422392,4.93965491,105610.0,105600.0,0.00234963]
[1749318422861,4.94631949,105610.0,105600.0,0.00234963]
[1749318423284,4.94631951,105610.0,105600.0,0.00234963]
[1749318423487,4.94631956,105610.0,105600.0,0.00234963]
[1749318423699,4.92188268,105610.0,105600.0,0.00234963]
[1749318424122,4.92854678,105610.0,105600.0,0.03404963]
[1749318424325,4.88401354,105610.0,105600.0,0.03404963]
[1749318424542,4.90844808,105610.0,105600.0,0.03404963]
[1749318425161,4.90178405,105610.0,105600.0,0.03404963]
[1749318425370,4.91778409,105610.0,105600.0,0.00234963]
[1749318425584,4.97797256,105610.0,105600.0,0.00234963]
[1749318425791,4.97797209,105610.0,105600.0,0.00234963]
[1749318426003,0.81273342,105610.0,105600.0,0.00234963]
[1749318426212,4.96197221,105610.0,105600.0,0.00234963]
[1749318426415,4.96197241,105610.0,105600.0,0.00234963]
[1749318426822,4.96196699,105610.0,105600.0,0.00234963]
[1749318427056,4.9358614,105610.0,105600.0,0.00234963]
[1749318427236,4.92188268,105610.0,105600.0,0.00234963]
[1749318427469,4.90178125,105610.0,105600.0,0.00234963]
[1749318427676,4.89067643,105610.0,105600.0,0.00234963]
[1749318427885,4.88401354,105610.0,105600.0,0.00234963]
[1749318428100,4.90844414,105610.0,105600.0,0.00234963]
[1749318428730,4.90844419,105610.0,105600.0,0.00234963]
[1749318429165,4.90844418,105610.0,105600.0,0.00234963]
[1749318429611,4.90178011,105610.0,105600.0,0.00234963]
[1749318429857,4.90844256,105610.0,105600.0,0.00234963]
[1749318430508,4.90178005,105610.0,105600.0,0.00234963]
[1749318430734,4.90844249,105610.0,105600.0,0.00234963]
[1749318430980,4.90844251,105610.0,105600.0,0.00234963]
[1749318431205,4.9084426,105610.0,105600.0,0.00234963]
[1749318431629,4.90844244,105610.0,105600.0,0.00234963]
[1749318432058,4.90844086,105610.0,105600.0,0.00234963]
[1749318432306,4.90844085,105610.0,105600.0,0.00234963]
[1749318432718,4.90844086,105610.0,105600.0,0.00234963]
[1749318434009,4.90177853,105610.0,105600.0,0.00234963]
[1749318434231,4.88401354,105610.0,105600.0,0.00234963]
[1749318434450,4.90844033,105610.0,105600.0,0.00234963]
[1749318435159,4.9084403,105610.0,105600.0,0.00234963]
[1749318435367,4.90844034,105610.0,105600.0,0.00234963]
[1749318435573,4.93964763,105610.0,105600.0,0.00234963]
[1749318435727,4.9463097,105610.0,105600.0,0.00234963]
[1749318435929,4.92188268,105610.0,105600.0,0.00234963]
[1749318436163,4.92854459,105610.0,105600.0,0.00234963]
[1749318436392,4.92188268,105610.0,105600.0,0.00234963]
[1749318436597,4.90844106,105610.0,105600.0,0.00234963]
[1749318436803,4.90844102,105610.0,105600.0,0.00234963]
[1749318437219,4.89067558,105610.0,105600.0,0.00234963]
[1749318437477,4.90844103,105610.0,105600.0,0.00234963]
[1749318437699,4.90844103,105610.0,105600.0,0.03274963]
[1749318438342,4.90844101,105610.0,105600.0,0.03190963]
[1749318438803,4.90177897,105610.0,105600.0,0.03190963]
[1749318439010,4.908441,105610.0,105600.0,0.03190963]
[1749318440088,4.90844104,105610.0,105600.0,0.03190963]
[1749318440292,4.89067561,105610.0,105600.0,0.03190963]
[1749318440500,4.90844113,105610.0,105600.0,0.03190963]
[1749318440719,4.88401354,105610.0,105600.0,0.03190963]
[1749318440926,4.90177907,105610.0,105600.0,0.03190963]
[1749318441155,4.90844114,105610.0,105600.0,0.03190963]
[1749318441817,4.90844145,105610.0,105600.0,0.03190963]
[1749318442034,4.90844144,105610.0,105600.0,0.03190963]
[1749318442247,4.89067561,105610.0,105600.0,0.03190963]
[1749318442458,4.90177937,105610.0,105600.0,0.03190963]
[1749318442632,4.90844155,105610.0,105600.0,0.03190963]
[1749318443822,4.89067572,105610.0,105600.0,0.03190963]
[1749318443997,4.90844156,105610.0,105600.0,0.03190963]
[1749318444203,4.9084419,105610.0,105600.0,0.03190963]
[1749318444528,4.90844204,105610.0,105600.0,0.03190963]
[1749318445015,4.90844229,105610.0,105600.0,0.03190963]
[1749318445439,4.88401354,105610.0,105600.0,0.03190963]
[1749318445643,4.90844238,105610.0,105600.0,0.03190963]
[1749318446374,4.94631179,105610.0,105600.0,0.03190963]
[1749318446663,4.94631179,105610.0,105600.0,0.01660963]
[1749318446802,4.93964911,105610.0,105600.0,0.01660963]
[1749318447010,4.94631289,105610.0,105600.0,0.01660963]
[1749318447207,4.93965011,105610.0,105600.0,0.01660963]
[1749318447616,4.94631289,105610.0,105600.0,0.01660963]
[1749318448991,4.94631549,105610.0,105600.0,0.00150963]
[1749318449194,4.939652,105610.0,105600.0,0.00150963]
[1749318449366,4.9463155,105610.0,105600.0,0.00150963]
[1749318450150,4.94631552,105610.0,105600.0,0.00150963]
[1749318450744,4.92854619,105610.0,105600.0,0.00150963]
[1749318450941,4.94631555,105610.0,105600.0,0.00150963]
[1749318451814,4.92188268,105610.0,105600.0,0.00150963]
[1749318452037,4.94631555,105610.0,105600.0,0.00150963]
[1749318453465,4.94631856,105610.0,105600.0,0.00150963]
[1749318453665,4.93965423,105610.0,105600.0,0.00150963]
[1749318453875,4.9463185,105610.0,105600.0,0.00150963]
[1749318454077,4.92854699,105610.0,105600.0,0.00150963]
[1749318454289,4.9463185,105610.0,105600.0,0.00150963]
[1749318455320,4.94631852,105610.0,105600.0,0.00150963]
[1749318455530,4.93965417,105610.0,105600.0,0.00150963]
[1749318455885,4.94631832,105610.0,105600.0,0.00150963]
[1749318456088,4.93965409,105610.0,105600.0,0.00150963]
[1749318456291,4.94631837,105610.0,105600.0,0.00150963]
[1749318456700,4.94631836,105610.0,105600.0,0.00150963]
[1749318457111,4.94631839,105610.0,105600.0,0.00150963]
[1749318457850,4.93965411,105610.0,105600.0,0.00150963]
[1749318458054,4.94631838,105610.0,105600.0,0.00150963]
[1749318458456,4.92854696,105610.0,105600.0,0.00150963]
[1749318458608,4.92854695,105610.0,105600.0,0.00150963]
[1749318458779,4.93965407,105610.0,105600.0,0.00150963]
[1749318459155,4.94631834,105610.0,105600.0,0.00150963]
[1749318459576,4.92854695,105610.0,105600.0,0.00150963]
[1749318459760,4.92188268,105610.0,105600.0,0.00150963]
[1749318459935,0.8215152,105610.0,105600.0,0.00150963]
[1749318460116,4.92188268,105610.0,105600.0,0.00150963]
[1749318460334,4.92854692,105610.0,105600.0,0.00150963]
[1749318460523,4.94631826,105610.0,105600.0,0.00150963]
[1749318460721,4.93965402,105610.0,105600.0,0.00150963]
[1749318461132,4.94631827,105610.0,105600.0,0.00150963]
[1749318461328,4.92188268,105610.0,105600.0,0.00150963]
[1749318461528,4.9463183,105610.0,105600.0,0.00150963]
[1749318461780,4.92854698,105610.0,105600.0,0.00150963]
[1749318461995,4.94631849,105610.0,105600.0,0.00150963]
[1749318462154,4.94631858,105610.0,105600.0,0.00150963]
[1749318462591,4.94631853,105610.0,105600.0,0.00150963]
[1749318462790,4.94631852,105610.0,105600.0,0.00150963]
[1749318463027,0.803744,105610.0,105600.0,0.00150963]
[1749318463240,4.9396542,105610.0,105600.0,0.00150963]
[1749318463447,4.93965412,105610.0,105600.0,0.00150963]
[1749318463655,4.97751843,105610.0,105600.0,0.00150963]
[1749318463863,4.96251849,105610.0,105600.0,0.00150963]
[1749318464068,0.83771549,105610.0,105600.0,0.00150963]
[1749318464273,4.95586304,105610.0,105600.0,0.00150963]
[1749318464482,4.95586282,105610.0,105600.0,0.00150963]
[1749318464894,4.93299854,105610.0,105600.0,0.00150963]
[1749318465097,0.81485979,105610.0,105600.0,0.00150963]
[1749318465303,4.93966277,105610.0,105600.0,0.00150963]
[1749318465744,4.93966278,105610.0,105600.0,0.00150963]
[1749318465955,4.93966266,105610.0,105600.0,0.00150963]
[1749318466587,4.92189144,105610.0,105600.0,0.00150963]
[1749318466821,4.9396628,105610.0,105600.0,0.00150963]
[1749318467854,4.93299856,105610.0,105600.0,0.00150963]
[1749318468088,4.92189146,105610.0,105600.0,0.00150963]
[1749318468298,4.93966272,105610.0,105600.0,0.00150963]
[1749318468499,4.93966269,105610.0,105600.0,0.00150963]
[1749318469120,4.93299849,105610.0,105600.0,0.00150963]
[1749318469333,0.81485971,105610.0,105600.0,0.00150963]
[1749318469529,4.92189145,105610.0,105600.0,0.00150963]
[1749318469759,4.93966279,105610.0,105600.0,0.00150963]
[1749318470098,4.93299856,105610.0,105600.0,0.00150963]
[1749318470301,4.93966281,105610.0,105600.0,0.00150963]
[1749318471283,4.91522723,105610.0,105600.0,0.00150963]
[1749318471478,4.93966276,105610.0,105600.0,0.00150963]
[1749318471680,4.93966285,105610.0,105600.0,0.00150963]
[1749318471890,4.93966287,105610.0,105600.0,0.00150963]
[1749318472295,0.81485991,105610.0,105600.0,0.00150963]
[1749318472503,4.93966291,105610.0,105600.0,0.00150963]
[1749318472705,4.93966303,105610.0,105600.0,0.00150963]
[1749318472991,4.93966305,105610.0,105600.0,0.00150963]
[1749318473214,4.92189155,105610.0,105600.0,0.00150963]
[1749318473420,0.79042423,105610.0,105600.0,0.00150963]
[1749318473643,4.9329988,105610.0,105600.0,0.00150963]
[1749318473848,4.93966318,105610.0,105600.0,0.00150963]
[1749318474461,0.81486018,105610.0,105600.0,0.00150963]
[1749318474675,4.93966319,105610.0,105600.0,0.00150963]
[1749318474900,4.93966324,105610.0,105600.0,0.01710963]
[1749318475121,0.24880975,105610.0,105600.0,0.03340963]
[1749318475325,0.22608201,105610.0,105600.0,0.03340963]
[1749318475532,0.21661303,105610.0,105600.0,0.31992963]
[1749318475742,0.2166126,105610.0,105600.0,0.32939932]
[1749318475957,0.2166126,105610.0,105600.0,0.52826267]
[1749318475958,0.03670465,105610.0,105600.0,0.52826267]
[1749318476180,0.21778141,105610.0,105600.0,0.53773227]
[1749318476392,0.22608044,105610.0,105600.0,0.53773227]
[1749318476593,0.20831315,105610.0,105600.0,0.53773227]
[1749318476798,0.2260807,105610.0,105600.0,0.62473227]
[1749318477006,0.22608075,105610.0,105600.0,0.6342016]
[1749318477230,0.20831315,105610.0,105600.0,0.6342016]
[1749318477433,0.22608077,105610.0,105600.0,0.6342016]
[1749318477636,0.2260808,105610.0,105600.0,0.6342016]
[1749318477864,0.21661227,105610.0,105600.0,0.61526285]
[1749318478080,0.19884462,105610.0,105600.0,0.61526285]
[1749318478290,0.20714423,105610.0,105600.0,0.61526285]
[1749318478682,0.189376,105610.0,105600.0,0.61526285]
[1749318478897,0.189376,105610.0,105600.0,0.62473227]
[1749318479544,0.2071445,105610.0,105600.0,0.62473227]
[1749318479754,0.189376,105610.0,105600.0,0.62473227]
[1749318480422,0.2071445,105610.0,105600.0,0.41639932]
[1749318480818,0.20714453,105610.0,105600.0,0.41639932]
[1749318481453,0.20714453,105610.0,105600.0,0.61526285]
[1749318481664,0.189376,105610.0,105600.0,0.62473236]
[1749318481898,0.20714451,105610.0,105600.0,0.61526285]
[1749318482106,0.20714437,105610.0,105600.0,0.41639932]
[1749318482317,0.20714433,105610.0,105600.0,0.41639932]
[1749318482528,0.20714434,105610.0,105600.0,0.41639932]
[1749318482748,0.189376,105610.0,105600.0,0.41639932]
[1749318482989,0.20714438,105610.0,105600.0,0.41639932]
[1749318483474,0.189376,105610.0,105600.0,0.41639932]
[1749318483704,0.189376,105610.0,105600.0,0.40692963]
[1749318484137,0.20714477,105610.0,105600.0,0.40692963]
[1749318484364,0.189376,105610.0,105600.0,0.40692963]
[1749318484587,0.20714478,105610.0,105600.0,0.40692963]
[1749318484797,0.189376,105610.0,105600.0,0.40692963]
[1749318485445,0.20714467,105610.0,105600.0,0.40692963]
[1749318485885,0.20714459,105610.0,105600.0,0.40692963]
[1749318486329,0.2071446,105610.0,105600.0,0.40692963]
[1749318486540,0.20714461,105610.0,105600.0,0.40692963]
[1749318486970,0.20710497,105610.0,105600.0,0.40692963]
[1749318487184,0.189376,105610.0,105600.0,0.40692963]
[1749318487601,0.22483112,105610.0,105600.0,0.40692963]
[1749318487807,0.20710497,105610.0,105600.0,0.40692963]
[1749318488887,0.22483124,105610.0,105600.0,0.40716301]
[1749318489095,0.22483122,105610.0,105600.0,0.40716301]
[1749318489544,0.20710497,105610.0,105600.0,0.40716301]
[1749318490226,0.22483122,105610.0,105600.0,0.40716301]
[1749318490471,0.20710497,105610.0,105600.0,0.40716301]
[1749318490711,0.22482759,105610.0,105600.0,0.40716301]
[1749318490917,0.20710497,105610.0,105600.0,0.40716301]
[1749318491120,0.22482759,105610.0,105600.0,0.40716301]
[1749318491533,0.20710497,105610.0,105600.0,0.40716301]
[1749318491946,0.22482759,105610.0,105600.0,0.40716301]
[1749318492161,0.20710497,105610.0,105600.0,0.40716301]
[1749318492981,0.22482759,105610.0,105600.0,0.40716301]
[1749318494037,0.20710497,105610.0,105600.0,0.40716301]
[1749318494188,0.22482759,105610.0,105600.0,0.40716301]
[1749318494401,0.22482326,105610.0,105600.0,0.40716301]
[1749318495052,0.20710497,105610.0,105600.0,0.40716301]
[1749318495392,0.22482326,105610.0,105600.0,0.40716301]
[1749318495679,0.20710497,105610.0,105600.0,0.40716301]
[1749318495855,0.22482326,105610.0,105600.0,0.40716301]
[1749318496086,0.20710497,105610.0,105600.0,0.40716301]
[1749318501959,0.22481382,105610.0,105600.0,0.40716301]
[1749318502358,0.22482493,105610.0,105600.0,0.40716301]
[1749318502604,0.22482492,105610.0,105600.0,0.40716301]
[1749318502804,0.24254491,105610.0,105600.0,0.40716301]
[1749318503010,0.24254468,105610.0,105600.0,0.40716301]
[1749318503226,0.24254489,105610.0,105600.0,0.40716301]
[1749318504165,0.24254479,105610.0,105600.0,0.40716301]
[1749318504375,0.22482492,105610.0,105600.0,0.40716301]
[1749318505028,0.24259183,105610.0,105600.0,0.40716301]
[1749318505237,0.24259214,105610.0,105600.0,0.40716301]
[1749318505450,0.24259214,105610.0,105600.0,0.40556301]
[1749318505872,0.24259213,105610.0,105600.0,0.40556301]
[1749318507975,0.22482492,105610.0,105600.0,0.40556301]
[1749318508192,0.24259236,105610.0,105600.0,0.40556301]
[1749318508403,0.22482492,105610.0,105600.0,0.40556301]
[1749318508611,0.24259233,105610.0,105600.0,0.40556301]
[1749318509843,0.24259226,105610.0,105600.0,0.40556301]
[1749318510581,0.22482492,105610.0,105600.0,0.40556301]
[1749318510786,0.24259225,105610.0,105600.0,0.40556301]
[1749318511033,0.24259246,105610.0,105600.0,0.40556301]
[1749318511649,0.22482492,105610.0,105600.0,0.40556301]
[1749318512163,0.24259258,105610.0,105600.0,0.40556301]
[1749318512379,0.24259263,105610.0,105600.0,0.40556301]
[1749318513021,0.22482492,105610.0,105600.0,0.40556301]
[1749318513455,0.2425926,105610.0,105600.0,0.40556301]
[1749318513582,0.22482492,105610.0,105600.0,0.40556301]
[1749318513934,0.24259256,105610.0,105600.0,0.40556301]
[1749318514844,0.22482492,105610.0,105600.0,0.40556301]
[1749318515458,0.2425926,105610.0,105600.0,0.40556301]
[1749318515671,0.2425926,105610.0,105600.0,0.11904301]
[1749318515872,0.2425926,105610.0,105600.0,0.40548301]
[1749318516515,0.2425923,105610.0,105600.0,0.40548301]
[1749318516727,0.2425923,105610.0,105600.0,0.38918301]
[1749318516927,0.24259271,105610.0,105600.0,0.38918301]
[1749318517134,0.24259276,105610.0,105600.0,0.38918301]
[1749318517983,0.22482492,105610.0,105600.0,0.38918301]
[1749318518184,0.24259172,105610.0,105600.0,0.38918301]
[1749318518378,0.24259169,105610.0,105600.0,0.38918301]
[1749318518986,0.22482492,105610.0,105600.0,0.38918301]
[1749318519605,0.24259169,105610.0,105600.0,0.38918301]
[1749318519812,0.22482492,105610.0,105600.0,0.38918301]
[1749318520014,0.24259181,105610.0,105600.0,0.38918301]
[1749318520241,0.24259171,105610.0,105600.0,0.38918301]
[1749318520448,0.24259168,105610.0,105600.0,0.38918301]
[1749318520650,0.22482492,105610.0,105600.0,0.38918301]
[1749318520857,0.2425917,105610.0,105600.0,0.38918301]
[1749318521063,0.22482492,105610.0,105600.0,0.38918301]
[1749318521271,0.2425917,105610.0,105600.0,0.38918301]
[1749318521924,0.24259169,105610.0,105600.0,0.38918301]
[1749318522376,0.22482492,105610.0,105600.0,0.38918301]
[1749318522579,0.24259164,105610.0,105600.0,0.38918301]
[1749318522812,0.2425917,105610.0,105600.0,0.38918301]
[1749318523066,0.22482492,105610.0,105600.0,0.38918301]
[1749318523281,0.24259167,105610.0,105600.0,0.38918301]
[1749318523693,0.2425917,105610.0,105600.0,0.38918301]
[1749318524383,0.24259137,105610.0,105600.0,0.38918301]
[1749318524588,0.22482492,105610.0,105600.0,0.38918301]
[1749318524960,0.24259141,105610.0,105600.0,0.38918301]
[1749318525368,0.22482492,105610.0,105600.0,0.38918301]
[1749318525772,0.2425916,105610.0,105600.0,0.38918301]
[1749318526201,0.24259152,105610.0,105600.0,0.38918301]
[1749318526417,0.24259151,105610.0,105600.0,0.38918301]
[1749318526621,0.24259153,105610.0,105600.0,0.38918301]
[1749318526820,0.24259148,105610.0,105600.0,0.38918301]
[1749318526964,0.22482492,105610.0,105600.0,0.38918301]